[Event "Titled Tuesday Blitz August 22 Early 2023"]
[White "Ottosen, David"]
[Black "EvgenyBurmakin"]
[WhiteFideId "2603080"]
[WhiteElo "2098"]
[BlackElo "2271"]
[Result "0-1"]
[Round "6"]
[TimeControl "180+1"]
[Date "2023.08.22"]
[WhiteClock "0:00:04"]
[BlackClock "0:00:08"]
[Board "218"]

1. e4 {[%clk 0:03:00]}  c5 {[%clk 0:02:57]} 2. Nf3 {[%clk 0:03:00]}  d6 {[%clk 0:02:57]} 3. d4 {[%clk 0:03:01]}  cxd4 {[%clk 0:02:57]} 4. Nxd4 {[%clk 0:03:02]}  Nf6 {[%clk 0:02:58]} 5. Nc3 {[%clk 0:03:03]}  a6 {[%clk 0:02:58]} 6. Be3 {[%clk 0:03:03]}  e6 {[%clk 0:02:58]} 7. g4 {[%clk 0:03:03]}  Be7 {[%clk 0:02:58]} 8. g5 {[%clk 0:03:03]}  Nfd7 {[%clk 0:02:58]} 9. h4 {[%clk 0:03:04]}  b5 {[%clk 0:02:52]} 10. Rg1 {[%clk 0:03:03]}  Bb7 {[%clk 0:02:50]} 11. f3 {[%clk 0:03:02]}  Qc7 {[%clk 0:02:44]} 12. h5 {[%clk 0:03:02]}  g6 {[%clk 0:02:01]} 13. Qd2 {[%clk 0:03:00]}  b4 {[%clk 0:01:54]} 14. Nce2 {[%clk 0:02:58]}  d5 {[%clk 0:01:53]} 15. exd5 {[%clk 0:02:42]}  Bxd5 {[%clk 0:01:54]} 16. Nf4 {[%clk 0:02:33]}  Bb7 {[%clk 0:01:29]} 17. Nfxe6 {[%clk 0:02:24]}  fxe6 {[%clk 0:01:28]} 18. Nxe6 {[%clk 0:02:24]}  Qe5 {[%clk 0:01:27]} 19. Bc4 {[%clk 0:02:07]}  Bxf3 {[%clk 0:01:18]} 20. h6 {[%clk 0:01:24]}  Nc6 {[%clk 0:00:39]} 21. Ng7+ {[%clk 0:01:22]}  Kd8 {[%clk 0:00:39]} 22. Be6 {[%clk 0:01:14]}  Ra7 {[%clk 0:00:29]} 23. Bg4 {[%clk 0:00:27]}  Bxg4 {[%clk 0:00:25]} 24. Rxg4 {[%clk 0:00:25]}  Bc5 {[%clk 0:00:21]} 25. Ke2 {[%clk 0:00:09]}  Qxe3+ {[%clk 0:00:16]} 26. Qxe3 {[%clk 0:00:10]}  Bxe3 {[%clk 0:00:16]} 27. Kxe3 {[%clk 0:00:11]}  Nce5 {[%clk 0:00:14]} 28. Rd1 {[%clk 0:00:11]}  Nxg4+ {[%clk 0:00:13]} 29. Kf4 {[%clk 0:00:11]}  Ne5 {[%clk 0:00:13]} 30. Ne6+ {[%clk 0:00:10]}  Ke7 {[%clk 0:00:14]} 31. Nd4 {[%clk 0:00:10]}  Rf8+ {[%clk 0:00:13]} 32. Ke4 {[%clk 0:00:09]}  Rc7 {[%clk 0:00:13]} 33. Re1 {[%clk 0:00:09]}  Rc5 {[%clk 0:00:12]} 34. Nb3 {[%clk 0:00:03]}  Rxc2 {[%clk 0:00:11]} 35. Kd5 {[%clk 0:00:04]}  Rxb2 {[%clk 0:00:10]} 36. Nd4 {[%clk 0:00:04]}  Rd2 {[%clk 0:00:09]} 37. Rxe5+ {[%clk 0:00:04]}  Nxe5 {[%clk 0:00:09]} 38. Kxe5 {[%clk 0:00:05]}  Rxd4 {[%clk 0:00:08]} 39. Kxd4 {[%clk 0:00:04]}  Rf5 {[%clk 0:00:08]} 0-1


[Site "https://www.chess.com"]

[Event "Titled Tuesday Blitz August 22 Early 2023"]
[White "Vargas, Mauricio"]
[Black "Sarkar, Justin"]
[WhiteFideId "4404572"]
[BlackFideId "2010011"]
[WhiteElo "1862"]
[BlackElo "2227"]
[Result "0-1"]
[Round "6"]
[TimeControl "180+1"]
[Date "2023.08.22"]
[WhiteClock "0:00:00"]
[BlackClock "0:00:04"]
[Board "220"]

1. e4 {[%clk 0:02:59]}  c5 {[%clk 0:02:54]} 2. Nc3 {[%clk 0:02:41]}  Nc6 {[%clk 0:02:53]} 3. f4 {[%clk 0:02:26]}  g6 {[%clk 0:02:40]} 4. Nf3 {[%clk 0:02:18]}  Bg7 {[%clk 0:02:39]} 5. g4 {[%clk 0:02:13]}  d6 {[%clk 0:02:26]} 6. h3 {[%clk 0:01:51]}  h5 {[%clk 0:02:15]} 7. g5 {[%clk 0:01:49]}  e5 {[%clk 0:02:04]} 8. d3 {[%clk 0:01:43]}  Nge7 {[%clk 0:02:03]} 9. h4 {[%clk 0:01:41]}  d5 {[%clk 0:01:59]} 10. Bh3 {[%clk 0:01:37]}  Bxh3 {[%clk 0:01:41]} 11. Rxh3 {[%clk 0:01:36]}  Qd7 {[%clk 0:01:38]} 12. Rg3 {[%clk 0:01:31]}  dxe4 {[%clk 0:01:21]} 13. Nxe4 {[%clk 0:01:29]}  Nf5 {[%clk 0:01:17]} 14. Rg1 {[%clk 0:01:20]}  O-O-O {[%clk 0:00:53]} 15. Bd2 {[%clk 0:01:16]}  Ncd4 {[%clk 0:00:40]} 16. Nxd4 {[%clk 0:01:11]}  Qxd4 {[%clk 0:00:35]} 17. Rh1 {[%clk 0:00:40]}  Ne3 {[%clk 0:00:20]} 18. Qc1 {[%clk 0:00:32]}  Ng2+ {[%clk 0:00:13]} 19. Kf1 {[%clk 0:00:29]}  Nxf4 {[%clk 0:00:12]} 20. Be3 {[%clk 0:00:23]}  Qd5 {[%clk 0:00:08]} 21. Rh2 {[%clk 0:00:13]}  Ne6 {[%clk 0:00:04]} 22. Ke2 {[%clk 0:00:00]}  c4 {[%clk 0:00:04]} 0-1


[Site "https://www.chess.com"]

[Event "Titled Tuesday Blitz August 22 Early 2023"]
[White "Svane, Rasmus"]
[Black "Bortnyk, Olexandr"]
[WhiteFideId "4657101"]
[BlackFideId "14120828"]
[WhiteElo "3001"]
[BlackElo "3070"]
[Result "1/2-1/2"]
[Round "7"]
[TimeControl "180+1"]
[Date "2023.08.22"]
[WhiteClock "0:00:08"]
[BlackClock "0:00:02"]
[Board "1"]

1. Nf3 {[%clk 0:03:00]}  Nf6 {[%clk 0:02:57]} 2. g3 {[%clk 0:03:01]}  b6 {[%clk 0:02:57]} 3. Bg2 {[%clk 0:03:01]}  Bb7 {[%clk 0:02:58]} 4. O-O {[%clk 0:03:01]}  g6 {[%clk 0:02:58]} 5. d4 {[%clk 0:03:02]}  Bg7 {[%clk 0:02:59]} 6. c4 {[%clk 0:03:02]}  O-O {[%clk 0:03:00]} 7. Re1 {[%clk 0:03:02]}  e6 {[%clk 0:02:59]} 8. Bf4 {[%clk 0:03:02]}  d5 {[%clk 0:02:57]} 9. cxd5 {[%clk 0:03:01]}  exd5 {[%clk 0:02:58]} 10. Nc3 {[%clk 0:03:01]}  Na6 {[%clk 0:02:54]} 11. Rc1 {[%clk 0:03:00]}  c6 {[%clk 0:02:48]} 12. a3 {[%clk 0:02:50]}  Nc7 {[%clk 0:02:45]} 13. Bxc7 {[%clk 0:02:43]}  Qxc7 {[%clk 0:02:44]} 14. Ne5 {[%clk 0:02:43]}  Qd6 {[%clk 0:02:39]} 15. e3 {[%clk 0:02:42]}  Rfe8 {[%clk 0:02:30]} 16. b4 {[%clk 0:02:38]}  Re7 {[%clk 0:02:26]} 17. Qb3 {[%clk 0:02:37]}  h5 {[%clk 0:02:21]} 18. h4 {[%clk 0:02:30]}  Rae8 {[%clk 0:02:18]} 19. Red1 {[%clk 0:02:29]}  b5 {[%clk 0:02:08]} 20. a4 {[%clk 0:02:26]}  a6 {[%clk 0:02:08]} 21. axb5 {[%clk 0:02:25]}  axb5 {[%clk 0:02:09]} 22. Ra1 {[%clk 0:02:26]}  Bc8 {[%clk 0:01:56]} 23. Rdc1 {[%clk 0:02:24]}  Ng4 {[%clk 0:01:46]} 24. Nxg4 {[%clk 0:02:10]}  Bxg4 {[%clk 0:01:47]} 25. Nd1 {[%clk 0:01:46]}  Be2 {[%clk 0:01:13]} 26. Qc3 {[%clk 0:01:25]}  Bc4 {[%clk 0:01:10]} 27. Nb2 {[%clk 0:01:24]}  Re6 {[%clk 0:01:05]} 28. Nxc4 {[%clk 0:01:24]}  bxc4 {[%clk 0:01:03]} 29. Ra5 {[%clk 0:01:06]}  Bh6 {[%clk 0:00:55]} 30. Re1 {[%clk 0:00:59]}  Rb8 {[%clk 0:00:53]} 31. Rc5 {[%clk 0:00:59]}  Rb5 {[%clk 0:00:50]} 32. e4 {[%clk 0:00:56]}  Qe7 {[%clk 0:00:29]} 33. Kf1 {[%clk 0:00:51]}  Qb7 {[%clk 0:00:23]} 34. exd5 {[%clk 0:00:48]}  Rxe1+ {[%clk 0:00:23]} 35. Qxe1 {[%clk 0:00:45]}  Rxc5 {[%clk 0:00:23]} 36. bxc5 {[%clk 0:00:37]}  cxd5 {[%clk 0:00:23]} 37. Bf3 {[%clk 0:00:24]}  Kh7 {[%clk 0:00:20]} 38. Kg2 {[%clk 0:00:21]}  Bg7 {[%clk 0:00:20]} 39. Qe3 {[%clk 0:00:19]}  Qd7 {[%clk 0:00:19]} 40. Qc3 {[%clk 0:00:16]}  Bf6 {[%clk 0:00:18]} 41. Qe3 {[%clk 0:00:17]}  Kg7 {[%clk 0:00:18]} 42. Qc3 {[%clk 0:00:17]}  Qe6 {[%clk 0:00:18]} 43. Qe3 {[%clk 0:00:15]}  Bd8 {[%clk 0:00:14]} 44. Qc3 {[%clk 0:00:11]}  Bc7 {[%clk 0:00:10]} 45. Qd2 {[%clk 0:00:10]}  Bd8 {[%clk 0:00:09]} 46. Qc3 {[%clk 0:00:10]}  Bf6 {[%clk 0:00:09]} 47. Qe3 {[%clk 0:00:10]}  Kf8 {[%clk 0:00:09]} 48. Qc3 {[%clk 0:00:10]}  Ke7 {[%clk 0:00:07]} 49. Qb2 {[%clk 0:00:09]}  Qc6 {[%clk 0:00:07]} 50. Qc3 {[%clk 0:00:08]}  Kd7 {[%clk 0:00:04]} 51. Qe3 {[%clk 0:00:08]}  Kd8 {[%clk 0:00:04]} 52. Qc3 {[%clk 0:00:08]}  Ke7 {[%clk 0:00:04]} 53. Qe3+ {[%clk 0:00:08]}  Kd7 {[%clk 0:00:05]} 54. Qc3 {[%clk 0:00:08]}  Qe6 {[%clk 0:00:02]} 55. Qb2 {[%clk 0:00:07]}  Qc6 {[%clk 0:00:02]} 56. Qd2 {[%clk 0:00:07]}  Ke8 {[%clk 0:00:02]} 57. Qe3+ {[%clk 0:00:07]}  Kf8 {[%clk 0:00:03]} 58. Qc3 {[%clk 0:00:07]}  Kg7 {[%clk 0:00:03]} 59. Qe3 {[%clk 0:00:08]}  Qd7 {[%clk 0:00:02]} 60. Qc3 {[%clk 0:00:08]}  Qe6 {[%clk 0:00:02]} 1/2-1/2


[Site "https://www.chess.com"]

[Event "Titled Tuesday Blitz August 22 Early 2023"]
[White "Sadhwani, Raunak"]
[Black "Vachier-Lagrave, Maxime"]
[WhiteFideId "35093487"]
[BlackFideId "623539"]
[WhiteElo "3040"]
[BlackElo "3143"]
[Result "1/2-1/2"]
[Round "7"]
[TimeControl "180+1"]
[Date "2023.08.22"]
[WhiteClock "0:01:22"]
[BlackClock "0:01:28"]
[Board "2"]

1. e4 {[%clk 0:03:00]}  e5 {[%clk 0:03:00]} 2. Nf3 {[%clk 0:03:01]}  Nc6 {[%clk 0:03:00]} 3. Bb5 {[%clk 0:03:01]}  a6 {[%clk 0:03:00]} 4. Ba4 {[%clk 0:03:02]}  Nf6 {[%clk 0:03:00]} 5. O-O {[%clk 0:03:02]}  Bc5 {[%clk 0:03:00]} 6. d3 {[%clk 0:02:54]}  b5 {[%clk 0:02:55]} 7. Bb3 {[%clk 0:02:55]}  d6 {[%clk 0:02:52]} 8. a4 {[%clk 0:02:46]}  Rb8 {[%clk 0:02:51]} 9. axb5 {[%clk 0:02:45]}  axb5 {[%clk 0:02:51]} 10. Be3 {[%clk 0:02:37]}  Bxe3 {[%clk 0:02:42]} 11. fxe3 {[%clk 0:02:38]}  Be6 {[%clk 0:02:33]} 12. Bxe6 {[%clk 0:02:33]}  fxe6 {[%clk 0:02:34]} 13. Nc3 {[%clk 0:02:25]}  O-O {[%clk 0:02:32]} 14. Ne2 {[%clk 0:02:26]}  Qd7 {[%clk 0:02:27]} 15. Ng3 {[%clk 0:02:26]}  Ra8 {[%clk 0:02:25]} 16. Qd2 {[%clk 0:02:25]}  d5 {[%clk 0:02:01]} 17. Rxa8 {[%clk 0:01:44]}  Rxa8 {[%clk 0:01:59]} 18. exd5 {[%clk 0:01:45]}  exd5 {[%clk 0:02:00]} 19. d4 {[%clk 0:01:45]}  Ne4 {[%clk 0:01:50]} 20. Nxe4 {[%clk 0:01:45]}  dxe4 {[%clk 0:01:28]} 21. dxe5 {[%clk 0:01:22]} 1/2-1/2


[Site "https://www.chess.com"]

[Event "Titled Tuesday Blitz August 22 Early 2023"]
[White "Kravtsiv, Martyn"]
[Black "Nihal Sarin"]
[WhiteFideId "14113147"]
[BlackFideId "25092340"]
[WhiteElo "2880"]
[BlackElo "3135"]
[Result "0-1"]
[Round "7"]
[TimeControl "180+1"]
[Date "2023.08.22"]
[WhiteClock "0:00:03"]
[BlackClock "0:00:12"]
[Board "3"]

1. e4 {[%clk 0:03:00]}  d5 {[%clk 0:02:56]} 2. exd5 {[%clk 0:03:00]}  Qxd5 {[%clk 0:02:57]} 3. Nc3 {[%clk 0:03:00]}  Qd6 {[%clk 0:02:57]} 4. d4 {[%clk 0:02:59]}  Nf6 {[%clk 0:02:57]} 5. Nf3 {[%clk 0:02:59]}  Bg4 {[%clk 0:02:58]} 6. h3 {[%clk 0:02:57]}  Bxf3 {[%clk 0:02:53]} 7. Qxf3 {[%clk 0:02:57]}  c6 {[%clk 0:02:53]} 8. Be3 {[%clk 0:02:49]}  e6 {[%clk 0:02:53]} 9. g4 {[%clk 0:02:42]}  Nbd7 {[%clk 0:02:53]} 10. O-O-O {[%clk 0:02:33]}  Qc7 {[%clk 0:02:53]} 11. Kb1 {[%clk 0:02:27]}  Bb4 {[%clk 0:02:41]} 12. Bf4 {[%clk 0:02:19]}  Bd6 {[%clk 0:02:40]} 13. Bc1 {[%clk 0:02:15]}  Nd5 {[%clk 0:02:29]} 14. Ne4 {[%clk 0:02:08]}  b5 {[%clk 0:02:29]} 15. Nxd6+ {[%clk 0:01:59]}  Qxd6 {[%clk 0:02:30]} 16. h4 {[%clk 0:01:59]}  a5 {[%clk 0:02:28]} 17. h5 {[%clk 0:01:57]}  N7b6 {[%clk 0:02:20]} 18. g5 {[%clk 0:01:54]}  Rf8 {[%clk 0:02:06]} 19. Qe4 {[%clk 0:01:36]}  g6 {[%clk 0:02:06]} 20. Rh3 {[%clk 0:01:27]}  a4 {[%clk 0:02:04]} 21. Rf3 {[%clk 0:01:06]}  Kd7 {[%clk 0:01:47]} 22. Qe5 {[%clk 0:00:41]}  Qxe5 {[%clk 0:00:57]} 23. dxe5 {[%clk 0:00:42]}  Ke7 {[%clk 0:00:58]} 24. Rh3 {[%clk 0:00:41]}  Rfd8 {[%clk 0:00:53]} 25. Be2 {[%clk 0:00:38]}  b4 {[%clk 0:00:40]} 26. c4 {[%clk 0:00:32]}  bxc3 {[%clk 0:00:37]} 27. bxc3 {[%clk 0:00:32]}  Nd7 {[%clk 0:00:23]} 28. Ba3+ {[%clk 0:00:30]}  c5 {[%clk 0:00:23]} 29. Rh4 {[%clk 0:00:21]}  Nxc3+ {[%clk 0:00:22]} 30. Kc2 {[%clk 0:00:20]}  Nxe2 {[%clk 0:00:23]} 31. Rd2 {[%clk 0:00:17]}  Ng1 {[%clk 0:00:17]} 32. Rf4 {[%clk 0:00:14]}  Nh3 {[%clk 0:00:16]} 33. Rg4 {[%clk 0:00:13]}  Nxe5 {[%clk 0:00:16]} 34. Bxc5+ {[%clk 0:00:13]}  Ke8 {[%clk 0:00:16]} 35. hxg6 {[%clk 0:00:09]}  hxg6 {[%clk 0:00:12]} 36. Rh4 {[%clk 0:00:03]}  Rxd2+ {[%clk 0:00:12]} 0-1


[Site "https://www.chess.com"]

[Event "Titled Tuesday Blitz August 22 Early 2023"]
[White "Plazuelo Pascual, Juan"]
[Black "Esipenko, Andrey"]
[WhiteFideId "32059566"]
[BlackFideId "24175439"]
[WhiteElo "2701"]
[BlackElo "2970"]
[Result "0-1"]
[Round "7"]
[TimeControl "180+1"]
[Date "2023.08.22"]
[WhiteClock "0:00:24"]
[BlackClock "0:00:58"]
[Board "4"]

1. e4 {[%clk 0:03:00]}  e5 {[%clk 0:02:59]} 2. Nf3 {[%clk 0:03:01]}  Nc6 {[%clk 0:02:59]} 3. d4 {[%clk 0:03:01]}  exd4 {[%clk 0:02:58]} 4. Nxd4 {[%clk 0:03:02]}  Nf6 {[%clk 0:02:58]} 5. Nxc6 {[%clk 0:03:02]}  bxc6 {[%clk 0:02:58]} 6. Qe2 {[%clk 0:03:02]}  d5 {[%clk 0:02:55]} 7. exd5+ {[%clk 0:03:02]}  Be7 {[%clk 0:02:54]} 8. dxc6 {[%clk 0:03:03]}  O-O {[%clk 0:02:54]} 9. Be3 {[%clk 0:02:58]}  Ng4 {[%clk 0:02:47]} 10. Qd3 {[%clk 0:02:48]}  Nxe3 {[%clk 0:02:43]} 11. fxe3 {[%clk 0:02:44]}  Bd6 {[%clk 0:02:38]} 12. g3 {[%clk 0:02:24]}  Rb8 {[%clk 0:02:33]} 13. Bg2 {[%clk 0:02:10]}  Qf6 {[%clk 0:01:45]} 14. Nc3 {[%clk 0:02:09]}  Rxb2 {[%clk 0:01:44]} 15. Ne4 {[%clk 0:02:09]}  Bb4+ {[%clk 0:01:45]} 16. c3 {[%clk 0:01:58]}  Qf5 {[%clk 0:01:45]} 17. Rf1 {[%clk 0:01:30]}  Qe5 {[%clk 0:01:42]} 18. Rf2 {[%clk 0:01:16]}  Rxf2 {[%clk 0:01:17]} 19. Kxf2 {[%clk 0:01:17]}  Be7 {[%clk 0:01:12]} 20. Qd4 {[%clk 0:01:18]}  Qa5 {[%clk 0:01:10]} 21. Kg1 {[%clk 0:01:11]}  Be6 {[%clk 0:01:03]} 22. a4 {[%clk 0:00:24]}  Rd8 {[%clk 0:00:58]} 0-1


[Site "https://www.chess.com"]

[Event "Titled Tuesday Blitz August 22 Early 2023"]
[White "Harsh Suresh"]
[Black "Dubov, Daniil"]
[WhiteFideId "45018464"]
[BlackFideId "24126055"]
[WhiteElo "2886"]
[BlackElo "3036"]
[Result "0-1"]
[Round "7"]
[TimeControl "180+1"]
[Date "2023.08.22"]
[WhiteClock "0:00:25"]
[BlackClock "0:01:08"]
[Board "7"]

1. e4 {[%clk 0:03:00]}  e5 {[%clk 0:02:59]} 2. Nf3 {[%clk 0:03:00]}  Nc6 {[%clk 0:02:59]} 3. Bb5 {[%clk 0:02:59]}  a6 {[%clk 0:02:59]} 4. Ba4 {[%clk 0:02:59]}  Nf6 {[%clk 0:03:00]} 5. O-O {[%clk 0:02:59]}  Be7 {[%clk 0:02:59]} 6. Bxc6 {[%clk 0:02:59]}  dxc6 {[%clk 0:02:59]} 7. d3 {[%clk 0:02:59]}  Bg4 {[%clk 0:02:56]} 8. h3 {[%clk 0:02:54]}  Bxf3 {[%clk 0:02:50]} 9. Qxf3 {[%clk 0:02:55]}  Nd7 {[%clk 0:02:50]} 10. b3 {[%clk 0:02:54]}  Nc5 {[%clk 0:02:49]} 11. Ba3 {[%clk 0:02:53]}  Ne6 {[%clk 0:02:48]} 12. Bxe7 {[%clk 0:02:52]}  Qxe7 {[%clk 0:02:49]} 13. Nd2 {[%clk 0:02:48]}  h5 {[%clk 0:02:48]} 14. Nc4 {[%clk 0:02:47]}  O-O-O {[%clk 0:02:40]} 15. Ne3 {[%clk 0:02:26]}  Nd4 {[%clk 0:02:32]} 16. Qd1 {[%clk 0:02:26]}  g6 {[%clk 0:02:31]} 17. c3 {[%clk 0:02:25]}  Ne6 {[%clk 0:02:31]} 18. Qc2 {[%clk 0:02:24]}  Rd7 {[%clk 0:02:21]} 19. Rad1 {[%clk 0:02:24]}  Rhd8 {[%clk 0:02:20]} 20. Rd2 {[%clk 0:02:24]}  Qg5 {[%clk 0:02:16]} 21. Rfd1 {[%clk 0:02:21]}  f5 {[%clk 0:02:12]} 22. Nc4 {[%clk 0:01:46]}  Nf4 {[%clk 0:02:02]} 23. g3 {[%clk 0:01:43]}  Nxh3+ {[%clk 0:01:53]} 24. Kh2 {[%clk 0:01:40]}  h4 {[%clk 0:01:52]} 25. Kxh3 {[%clk 0:01:22]}  hxg3 {[%clk 0:01:50]} 26. fxg3 {[%clk 0:01:23]}  f4 {[%clk 0:01:16]} 27. Rg1 {[%clk 0:01:22]}  f3 {[%clk 0:01:07]} 28. g4 {[%clk 0:00:59]}  Qf4 {[%clk 0:01:07]} 29. Rf2 {[%clk 0:00:25]}  Rh8# {[%clk 0:01:08]} 0-1


[Site "https://www.chess.com"]

[Event "Titled Tuesday Blitz August 22 Early 2023"]
[White "Ilamparthi A R"]
[Black "Martinez Alcantara, Jose Eduardo"]
[WhiteFideId "45015775"]
[BlackFideId "3805662"]
[WhiteElo "2884"]
[BlackElo "3035"]
[Result "0-1"]
[Round "7"]
[TimeControl "180+1"]
[Date "2023.08.22"]
[WhiteClock "0:00:57"]
[BlackClock "0:01:54"]
[Board "8"]

1. e4 {[%clk 0:03:00]}  c5 {[%clk 0:03:00]} 2. Nf3 {[%clk 0:03:00]}  d6 {[%clk 0:02:58]} 3. g3 {[%clk 0:03:01]}  Nf6 {[%clk 0:02:58]} 4. d3 {[%clk 0:03:01]}  g6 {[%clk 0:02:57]} 5. Bg2 {[%clk 0:03:01]}  Bg7 {[%clk 0:02:58]} 6. O-O {[%clk 0:03:02]}  O-O {[%clk 0:02:59]} 7. Re1 {[%clk 0:03:02]}  Nc6 {[%clk 0:02:59]} 8. h3 {[%clk 0:03:02]}  e5 {[%clk 0:02:59]} 9. Nc3 {[%clk 0:03:01]}  h6 {[%clk 0:02:59]} 10. Nh2 {[%clk 0:03:01]}  Be6 {[%clk 0:02:58]} 11. Ng4 {[%clk 0:03:00]}  Nxg4 {[%clk 0:02:56]} 12. hxg4 {[%clk 0:03:00]}  Qd7 {[%clk 0:02:53]} 13. g5 {[%clk 0:02:51]}  hxg5 {[%clk 0:02:52]} 14. Bxg5 {[%clk 0:02:52]}  f6 {[%clk 0:02:53]} 15. Be3 {[%clk 0:02:52]}  Kf7 {[%clk 0:02:51]} 16. Nd5 {[%clk 0:02:49]}  Rh8 {[%clk 0:02:50]} 17. c3 {[%clk 0:02:48]}  Rh7 {[%clk 0:02:42]} 18. f4 {[%clk 0:02:24]}  Rah8 {[%clk 0:02:38]} 19. Qf3 {[%clk 0:02:23]}  Bh3 {[%clk 0:02:28]} 20. Bxh3 {[%clk 0:01:26]}  Rxh3 {[%clk 0:02:19]} 21. Kf1 {[%clk 0:01:25]}  exf4 {[%clk 0:02:01]} 22. Nxf4 {[%clk 0:01:03]}  Ne5 {[%clk 0:01:57]} 23. Qg2 {[%clk 0:00:57]}  Rh2 {[%clk 0:01:54]} 0-1


[Site "https://www.chess.com"]

[Event "Titled Tuesday Blitz August 22 Early 2023"]
[White "Sarana, Alexey"]
[Black "Jones, Gawain C B"]
[WhiteFideId "24133795"]
[BlackFideId "409561"]
[WhiteElo "3031"]
[BlackElo "2877"]
[Result "1-0"]
[Round "7"]
[TimeControl "180+1"]
[Date "2023.08.22"]
[WhiteClock "0:00:24"]
[BlackClock "0:00:02"]
[Board "9"]

1. d4 {[%clk 0:03:00]}  d5 {[%clk 0:03:00]} 2. c4 {[%clk 0:03:01]}  e6 {[%clk 0:03:01]} 3. Nc3 {[%clk 0:03:01]}  a6 {[%clk 0:03:01]} 4. cxd5 {[%clk 0:03:02]}  exd5 {[%clk 0:03:02]} 5. Bf4 {[%clk 0:03:02]}  h6 {[%clk 0:03:02]} 6. e3 {[%clk 0:03:02]}  Nf6 {[%clk 0:03:02]} 7. Bd3 {[%clk 0:03:03]}  Bd6 {[%clk 0:03:03]} 8. Bxd6 {[%clk 0:03:03]}  Qxd6 {[%clk 0:03:02]} 9. h3 {[%clk 0:03:03]}  O-O {[%clk 0:03:02]} 10. Nf3 {[%clk 0:03:04]}  Nc6 {[%clk 0:03:01]} 11. O-O {[%clk 0:03:04]}  Ne7 {[%clk 0:03:01]} 12. Qc2 {[%clk 0:03:03]}  g6 {[%clk 0:03:02]} 13. Nh4 {[%clk 0:02:58]}  c5 {[%clk 0:02:48]} 14. dxc5 {[%clk 0:02:57]}  Qxc5 {[%clk 0:02:48]} 15. Nf3 {[%clk 0:02:43]}  Bf5 {[%clk 0:02:47]} 16. Rfd1 {[%clk 0:02:43]}  Rac8 {[%clk 0:02:44]} 17. Rac1 {[%clk 0:02:41]}  Rfd8 {[%clk 0:02:42]} 18. Qb3 {[%clk 0:02:34]}  Bxd3 {[%clk 0:02:33]} 19. Rxd3 {[%clk 0:02:35]}  Qc4 {[%clk 0:02:17]} 20. Rcd1 {[%clk 0:02:28]}  Qxb3 {[%clk 0:02:11]} 21. axb3 {[%clk 0:02:29]}  Re8 {[%clk 0:02:09]} 22. g4 {[%clk 0:02:27]}  Rc5 {[%clk 0:01:56]} 23. Rd4 {[%clk 0:02:14]}  Nc6 {[%clk 0:01:50]} 24. Ra4 {[%clk 0:02:14]}  Ne5 {[%clk 0:01:28]} 25. Nd4 {[%clk 0:02:04]}  Ne4 {[%clk 0:01:19]} 26. Nde2 {[%clk 0:01:55]}  Nf3+ {[%clk 0:01:14]} 27. Kg2 {[%clk 0:01:52]}  Nh4+ {[%clk 0:01:00]} 28. Kf1 {[%clk 0:01:51]}  Re5 {[%clk 0:00:20]} 29. Nxe4 {[%clk 0:00:58]}  dxe4 {[%clk 0:00:20]} 30. Nc3 {[%clk 0:00:58]}  f5 {[%clk 0:00:17]} 31. Rd7 {[%clk 0:00:54]}  Ra5 {[%clk 0:00:09]} 32. Rc4 {[%clk 0:00:51]}  Rec5 {[%clk 0:00:08]} 33. Rxc5 {[%clk 0:00:40]}  Rxc5 {[%clk 0:00:09]} 34. b4 {[%clk 0:00:35]}  Rc6 {[%clk 0:00:07]} 35. Rxb7 {[%clk 0:00:34]}  Nf3 {[%clk 0:00:07]} 36. Kg2 {[%clk 0:00:27]}  fxg4 {[%clk 0:00:05]} 37. hxg4 {[%clk 0:00:27]}  Nd2 {[%clk 0:00:03]} 38. Nd5 {[%clk 0:00:26]}  Kf8 {[%clk 0:00:03]} 39. b5 {[%clk 0:00:24]}  a5 {[%clk 0:00:02]} 40. bxc6 {[%clk 0:00:24]} 1-0


[Site "https://www.chess.com"]

[Event "Titled Tuesday Blitz August 22 Early 2023"]
[White "Xiong, Jeffery"]
[Black "Mekhitarian, Krikor Sevag"]
[WhiteFideId "2047640"]
[BlackFideId "2107660"]
[WhiteElo "3003"]
[BlackElo "2875"]
[Result "0-1"]
[Round "7"]
[TimeControl "180+1"]
[Date "2023.08.22"]
[WhiteClock "0:00:03"]
[BlackClock "0:00:08"]
[Board "10"]

1. e4 {[%clk 0:03:00]}  e6 {[%clk 0:02:59]} 2. d4 {[%clk 0:03:01]}  d5 {[%clk 0:03:00]} 3. e5 {[%clk 0:03:01]}  c5 {[%clk 0:02:59]} 4. c3 {[%clk 0:03:02]}  Nc6 {[%clk 0:03:00]} 5. Nf3 {[%clk 0:03:03]}  Bd7 {[%clk 0:03:00]} 6. Be2 {[%clk 0:02:57]}  cxd4 {[%clk 0:03:00]} 7. cxd4 {[%clk 0:02:57]}  Nge7 {[%clk 0:03:00]} 8. Na3 {[%clk 0:02:58]}  Nf5 {[%clk 0:02:58]} 9. Nc2 {[%clk 0:02:58]}  Be7 {[%clk 0:02:59]} 10. O-O {[%clk 0:02:58]}  O-O {[%clk 0:02:59]} 11. Bd3 {[%clk 0:02:58]}  f6 {[%clk 0:03:00]} 12. Bxf5 {[%clk 0:02:57]}  exf5 {[%clk 0:03:01]} 13. Re1 {[%clk 0:02:56]}  Rc8 {[%clk 0:02:24]} 14. Bf4 {[%clk 0:02:23]}  g5 {[%clk 0:02:15]} 15. exf6 {[%clk 0:02:22]}  Bxf6 {[%clk 0:02:16]} 16. Be5 {[%clk 0:02:22]}  Be7 {[%clk 0:02:16]} 17. Nd2 {[%clk 0:01:52]}  f4 {[%clk 0:02:00]} 18. Nb3 {[%clk 0:01:52]}  Bf5 {[%clk 0:01:56]} 19. Rc1 {[%clk 0:01:51]}  b6 {[%clk 0:01:56]} 20. Nd2 {[%clk 0:01:45]}  Qd7 {[%clk 0:01:54]} 21. Nf1 {[%clk 0:01:32]}  Bg6 {[%clk 0:01:46]} 22. h3 {[%clk 0:01:22]}  h5 {[%clk 0:01:35]} 23. Nh2 {[%clk 0:01:21]}  Qf5 {[%clk 0:01:29]} 24. a3 {[%clk 0:01:14]}  Rfe8 {[%clk 0:01:26]} 25. Re2 {[%clk 0:00:56]}  Bf8 {[%clk 0:01:23]} 26. Qd2 {[%clk 0:00:51]}  Re6 {[%clk 0:01:06]} 27. Nf3 {[%clk 0:00:50]}  Be7 {[%clk 0:01:03]} 28. Rce1 {[%clk 0:00:41]}  g4 {[%clk 0:00:59]} 29. hxg4 {[%clk 0:00:40]}  hxg4 {[%clk 0:01:00]} 30. Nh2 {[%clk 0:00:33]}  f3 {[%clk 0:00:51]} 31. Ne3 {[%clk 0:00:21]}  Qh5 {[%clk 0:00:40]} 32. Nxd5 {[%clk 0:00:18]}  fxe2 {[%clk 0:00:40]} 33. Nf4 {[%clk 0:00:19]}  Bg5 {[%clk 0:00:27]} 34. Rxe2 {[%clk 0:00:08]}  Nxe5 {[%clk 0:00:27]} 35. dxe5 {[%clk 0:00:07]}  Bxf4 {[%clk 0:00:25]} 36. Qxf4 {[%clk 0:00:07]}  Qf5 {[%clk 0:00:19]} 37. Qe3 {[%clk 0:00:07]}  Rce8 {[%clk 0:00:15]} 38. f4 {[%clk 0:00:06]}  gxf3 {[%clk 0:00:15]} 39. Nxf3 {[%clk 0:00:07]}  Bh5 {[%clk 0:00:15]} 40. Rf2 {[%clk 0:00:06]}  Qg6 {[%clk 0:00:09]} 41. Qf4 {[%clk 0:00:03]}  Rf8 {[%clk 0:00:08]} 0-1


[Site "https://www.chess.com"]